fUSD/lending_fUSD_20250618
["ID","MTS","AMOUNT","RATE_DAILY","PERIOD"]
[366489130,1750287049261,-989.95,0.00027714,2]
[366489131,1750287049274,-1017.88,0.00027714,2]
[366489132,1750287049289,-593.93,0.00027714,2]
[366489133,1750287049300,-604.58,0.00027714,2]
[366489134,1750287049311,-599.12,0.00027714,2]
[366489135,1750287049325,-1007.66,0.00027723,2]
[366489136,1750287049339,-1014.17,0.00027723,2]
[366489137,1750287049352,-500.0,0.00027726,15]
[366489138,1750287049366,-500.0,0.00027726,15]
[366489139,1750287049379,-253.16403652,0.00027727,2]
[366489140,1750287049393,-457.0,0.00027789,14]
[366489141,1750287049407,-1000.63,0.00027827,2]
[366489142,1750287049420,-1015.77,0.00027827,2]
[366489143,1750287049434,-590.76,0.00027827,2]
[366489144,1750287049448,-1002.09,0.00027827,2]
[366489145,1750287049462,-1003.47,0.00027827,2]
[366489146,1750287049475,-981.56,0.00027827,2]
[366489147,1750287049488,-984.76,0.00027827,2]
[366489148,1750287049500,-605.86,0.00027827,2]
[366489149,1750287049513,-999.3,0.00027827,2]
[366489150,1750287049524,-1017.44,0.00027827,2]
[366489151,1750287049537,-589.35,0.00027827,2]
[366489152,1750287049548,-999.49,0.00027827,2]
[366489153,1750287049567,-1007.49,0.00027827,2]
[366489154,1750287049581,-588.1,0.00027827,2]
[366489155,1750287049595,-1014.94,0.00027827,2]
[366489156,1750287049609,-991.44,0.00027827,2]
[366489157,1750287049621,-605.21,0.00027827,2]
[366489158,1750287049632,-991.89,0.00027827,2]
[366489159,1750287049642,-983.8,0.00027827,2]
[366489160,1750287049654,-607.29,0.00027827,2]
[366489161,1750287049666,-998.45,0.00027827,2]
[366489162,1750287049680,-986.96,0.00027827,2]
[366489163,1750287049693,-609.49,0.00027827,2]
[366489164,1750287049703,-984.96,0.00027827,2]
[366489165,1750287049714,-986.02,0.00027827,2]
[366489166,1750287049725,-604.76,0.00027827,2]
[366489167,1750287049736,-391.0,0.0002783,15]
[366489168,1750287049748,-2000.0,0.000279,2]
[366489169,1750287049764,-2835.43448392,0.000279,2]
[366489170,1750287049778,-764.40991766,0.000279,4]
[366489171,1750287049789,-764.40991766,0.000279,4]
[366489172,1750287049800,-764.40991766,0.000279,4]
[366489173,1750287049812,-764.40991766,0.000279,4]
[366489174,1750287049828,-764.40991766,0.000279,4]
[366489175,1750287049841,-764.40991766,0.000279,4]
[366489176,1750287049854,-764.40991766,0.000279,4]
[366489177,1750287049866,-764.40991766,0.000279,4]
[366489178,1750287049879,-764.40991766,0.000279,4]
[366489179,1750287049892,-764.40991766,0.000279,4]
[366489180,1750287049905,-764.40991766,0.000279,4]
[366489181,1750287049919,-764.40991766,0.000279,4]
[366489182,1750287049933,-764.40991766,0.000279,4]
[366489183,1750287049947,-764.40991766,0.000279,4]
[366489184,1750287049962,-764.40991766,0.000279,4]
[366489185,1750287049976,-764.40991766,0.000279,4]
[366489186,1750287049990,-764.40991766,0.000279,4]
[366489187,1750287050005,-764.40991766,0.000279,4]
[366489188,1750287050020,-764.40991766,0.000279,4]
[366489189,1750287050038,-764.4,0.000279,4]
[366489190,1750287050052,-471.2865929,0.000279,4]
[366489191,1750287050065,-471.2865929,0.000279,4]
[366489192,1750287050085,-471.2865929,0.000279,4]
[366489193,1750287050099,-471.2865929,0.000279,4]
[366489194,1750287050114,-471.2865929,0.000279,4]
[366489195,1750287050128,-471.2865929,0.000279,4]
[366489196,1750287050141,-471.2865929,0.000279,4]
[366489197,1750287050155,-471.2865929,0.000279,4]
[366489198,1750287050168,-471.2865929,0.000279,4]
[366489199,1750287050182,-471.2865929,0.000279,4]
[366489200,1750287050195,-471.2865929,0.000279,4]
[366489201,1750287050208,-471.2865929,0.000279,4]
[366489202,1750287050221,-471.2865929,0.000279,4]
[366489203,1750287050233,-471.2865929,0.000279,4]
[366489204,1750287050246,-471.2865929,0.000279,4]
[366489205,1750287050258,-471.2865929,0.000279,4]
[366489206,1750287050270,-471.2865929,0.000279,4]
[366489207,1750287050283,-471.2865929,0.000279,4]
[366489208,1750287050295,-471.2865929,0.000279,4]
[366489209,1750287050318,-471.28,0.000279,4]
[366489210,1750287050330,-1273.67912105,0.000279,4]
[366489211,1750287050341,-1273.67912105,0.000279,4]
[366489212,1750287050353,-1273.67912105,0.000279,4]
[366489213,1750287050365,-1273.67912105,0.000279,4]
[366489214,1750287050377,-1273.67912105,0.000279,4]
[366489215,1750287050389,-1273.67912105,0.000279,4]
[366489216,1750287050401,-1273.67912105,0.000279,4]
[366489217,1750287050413,-1273.67912105,0.000279,4]
[366489218,1750287050424,-1273.67912105,0.000279,4]
[366489219,1750287050436,-1273.67912105,0.000279,4]
[366489220,1750287050448,-1273.67912105,0.000279,4]
[366489221,1750287050460,-1273.67912105,0.000279,4]
[366489222,1750287050472,-1273.67912105,0.000279,4]
[366489223,1750287050483,-1273.67912105,0.000279,4]
[366489224,1750287050495,-1273.67912105,0.000279,4]
[366489225,1750287050506,-1273.67912105,0.000279,4]
[366489226,1750287050518,-1273.67912105,0.000279,4]
[366489227,1750287050530,-1273.67912105,0.000279,4]
[366489228,1750287050541,-1273.67912105,0.000279,4]
[366489229,1750287050552,-1273.67,0.000279,4]
[366489230,1750287050564,-150.0,0.00027945,7]
[366489231,1750287050575,-802.44,0.00027973,2]
[366489232,1750287050593,-150.0,0.00027991,2]
[366489233,1750287050612,-500.0,0.00028,15]
[366489234,1750287050626,-500.0,0.00028,15]
[366489235,1750287050639,-602.59,0.00028,2]
[366489236,1750287050652,-984.91,0.00028,2]
[366489237,1750287050665,-278.72,0.00028,2]
[366489238,1750287050679,-1189.30530273,0.00028,5]
[366489239,1750287050693,-300.0,0.00028,2]
[366489240,1750287050706,-2000.0,0.00028,7]
[366489241,1750287050720,-2110.0,0.00028,2]
[366489242,1750287050733,-12850.62810092,0.00028,2]
[366489243,1750287050746,-257.01256202,0.00028,2]
[366489244,1750287050759,-209.28939032,0.00028,2]
[366489245,1750287050772,-1500.0,0.00028,2]
[366489246,1750287050785,-4000.0,0.00028,4]
[366489247,1750287050797,-174.61919141,0.00028013,2]
[366489248,1750287050809,-239.84119403,0.00028013,2]
[366489249,1750287050823,-453.0,0.00028031,14]
[366489250,1750287050835,-152.0,0.0002816,8]
[366489251,1750287050848,-445.01,0.00028247,2]
[366489252,1750287050860,-500.0,0.00028274,15]
[366489253,1750287050873,-500.0,0.00028274,15]
[366489254,1750287050885,-867.37275521,0.000283,2]
[366489255,1750287050897,-201.86242174,0.0002833,2]
[366489256,1750287050910,-457.0,0.00028417,14]
[366489257,1750287050923,-354.86,0.00028466,2]
[366489258,1750287050935,-154.46439069,0.000285,7]
[366489259,1750287050947,-2110.0,0.000285,2]
[366489260,1750287050959,-1500.0,0.000285,2]
[366489261,1750287050971,-500.0,0.00028548,15]
[366489262,1750287050983,-523.88,0.00028548,15]
[366489263,1750287050995,-150.0,0.00028581,2]
[366489264,1750287051007,-3000.0,0.0002859,7]
[366489265,1750287051019,-7880.11,0.000286,2]
[366489266,1750287051035,-202.0,0.00028659,15]
[366489267,1750287051047,-5701.15,0.000287,2]
[366489268,1750287051059,-150.0,0.00028756,2]
[366489269,1750287051071,-150.0,0.00028767,30]
[366489270,1750287051083,-500.0,0.00028822,15]
[366489271,1750287051095,-471.099345,0.000289,7]
[366489272,1750287051107,-471.099345,0.000289,7]
[366489273,1750287051119,-2835.43448392,0.000289,2]
[366489274,1750287051131,-152.0,0.00028958,9]
[366489275,1750287051143,-457.0,0.00028997,14]
[366489276,1750287051154,-453.0,0.00028997,14]
[366489277,1750287051166,-499.999999,0.00029,5]
[366489278,1750287051178,-70381.98798326,0.00029,2]
[366489279,1750287051190,-50593.63608429,0.00029,2]
[366489280,1750287051202,-5000.0,0.00029,2]
[366489281,1750287051214,-300.0,0.00029,2]
[366489282,1750287051226,-163.0,0.00029,120]
[366489283,1750287051239,-178.0,0.00029,120]
[366489284,1750287051250,-162.93258834,0.00029,2]
[366489285,1750287051267,-11339.3209583,0.00029,2]
[366489286,1750287051281,-2110.0,0.00029,2]
[366489287,1750287051295,-202.0,0.00029,30]
[366489288,1750287051308,-500.0,0.00029,120]
[366489289,1750287051322,-151.0,0.00029,7]
[366489290,1750287051338,-236.15329,0.00029,7]
[366489291,1750287051352,-572.406527,0.00029,7]
[366489292,1750287051365,-572.406527,0.00029,7]
[366489293,1750287051379,-1500.0,0.00029,2]
[366489294,1750287051393,-4000.0,0.00029,4]
[366489295,1750287051406,-500.0,0.00029096,15]
[366489296,1750287051418,-677.06841404,0.00029096,7]
[366489297,1750287051432,-500.0,0.0002915,30]
[366489298,1750287051444,-150.0,0.00029171,2]
[366489299,1750287051458,-500.0,0.0002925,30]
[366489300,1750287051470,-276.26198042,0.00029267,15]
[366489301,1750287051484,-471.099345,0.00029308,7]
[366489302,1750287051496,-471.099345,0.00029308,7]
[366489303,1750287051510,-3935.28017157,0.00029308,2]
[366489304,1750287051522,-500.0,0.0002937,15]
[366489305,1750287051535,-181.08010149,0.00029382,2]
[366489306,1750287051548,-248.71531821,0.00029382,2]
[366489307,1750287051562,-8727.73425319,0.000294,7]
[366489308,1750287051575,-457.0,0.00029432,14]
[366489309,1750287051593,-1076.08,0.00029445,2]
[366489310,1750287051606,-604.15,0.00029495,2]
[366489311,1750287051619,-605.94,0.00029495,2]
[366489312,1750287051632,-1000.0,0.000295,2]
[366489313,1750287051645,-510.0,0.000295,30]
[366489314,1750287051658,-2110.0,0.000295,2]
[366489315,1750287051671,-2795.48,0.000295,7]
[366489316,1750287051685,-1500.0,0.000295,2]
[366489317,1750287051697,-2911.1109851,0.0002966,2]
[366489318,1750287051709,-330.1470892,0.0002966,2]
[366489319,1750287051722,-21143.8669635,0.0002968,2]
[366489320,1750287051735,-1564.36707593,0.000297,30]
[366489321,1750287051748,-5701.15,0.000297,2]
[366489322,1750287051759,-1000.0,0.0002973,30]
[366489323,1750287051776,-152.0,0.00029757,10]
[366489324,1750287051790,-5554.9461707,0.0002976,2]
[366489325,1750287051804,-150.0,0.00029761,2]
[366489326,1750287051817,-1783.62314122,0.00029776,4]
[366489327,1750287051831,-1099.66871677,0.00029776,4]
[366489328,1750287051848,-2971.91794911,0.00029776,4]
[366489329,1750287051861,-1000.0,0.0002978,7]
[366489330,1750287051875,-281.08004971,0.00029781,7]
[366489331,1750287051888,-400.0,0.000298,2]
[366489332,1750287051901,-199.4623529,0.0002984,2]
[366489333,1750287051912,-2000.0,0.0002985,2]
[366489334,1750287051925,-2000.0,0.0002985,2]
[366489335,1750287051937,-8698.65386863,0.000299,30]
[366489336,1750287051950,-471.099345,0.000299,7]
[366489337,1750287051962,-471.09935145,0.000299,7]
[366489338,1750287051974,-7880.11,0.000299,2]
[366489339,1750287051987,-600.0,0.000299,10]
[366489340,1750287051999,-164.0,0.00029903,14]
[366489341,1750287052011,-300.0,0.0002997,2]
[366489342,1750287052024,-250.0,0.0002997,2]
[366489343,1750287052039,-1000.00263447,0.0002999,2]
[366489344,1750287052052,-230.3470147,0.0002999,2]
[366489345,1750287052063,-174.76671634,0.0003,2]
[366489346,1750287052075,-19293.97850761,0.0003,2]
[366489347,1750287052090,-206481.31941713,0.0003,2]
[366489348,1750287052102,-1024.89245414,0.0003,2]
[366489349,1750287052115,-1762.15383637,0.0003,2]
[366489350,1750287052126,-160.9566258,0.0003,2]
[366489351,1750287052137,-1055.84030459,0.0003,10]
[366489352,1750287052149,-1555.31467428,0.0003,2]
[366489353,1750287052160,-195.6,0.0003,7]
[366489354,1750287052171,-162.3,0.0003,2]
[366489355,1750287052183,-20000.0,0.0003,2]
[366489356,1750287052194,-10000.0,0.0003,10]
[366489357,1750287052206,-2000.0,0.0003,14]
[366489358,1750287052217,-5378.0,0.0003,3]
[366489359,1750287052229,-607.69832186,0.0003,15]
[366489360,1750287052241,-6863.67956178,0.0003,5]
[366489361,1750287052252,-1000.0,0.0003,15]
[366489362,1750287052265,-300.0,0.0003,2]
[366489363,1750287052276,-314.69560979,0.0003,5]
[366489364,1750287052288,-34156.54518019,0.0003,2]
[366489365,1750287052300,-2627.83326467,0.0003,2]
[366489366,1750287052317,-2110.0,0.0003,2]
[366489367,1750287052328,-500.0,0.0003,4]
[366489368,1750287052342,-150.0,0.0003,2]
[366489369,1750287052354,-49972.10783863,0.0003,10]
[366489370,1750287052366,-202.0,0.0003,30]
[366489371,1750287052377,-7880.11,0.0003,2]
[366489372,1750287052389,-1000.0,0.0003,120]
[366489373,1750287052401,-286.564012,0.0003,7]
[366489374,1750287052413,-833.92080167,0.0003,30]
[366489375,1750287052425,-572.406527,0.0003,7]
[366489376,1750287052437,-572.406531,0.0003,7]
[366489377,1750287052450,-1500.0,0.0003,2]
[366489378,1750287052462,-214.0,0.0003,2]
[366489379,1750287052473,-159.0947036,0.0003,60]
[366489380,1750287052485,-150.0,0.00030126,2]
[366489381,1750287052496,-195.64654451,0.0003013,2]
[366489382,1750287052507,-13133.46157867,0.0003013,2]
[366489383,1750287052519,-652.0618054,0.0003013,120]
[366489384,1750287052531,-154.64296306,0.0003013,2]
[366489385,1750287052543,-300.0,0.00030137,80]
[366489386,1750287052555,-1783.62314122,0.00030143,4]
[366489387,1750287052566,-1099.66871677,0.00030143,4]
[366489388,1750287052577,-2971.91794911,0.00030143,4]
[366489389,1750287052590,-315567.12,0.000302,7]
[366489390,1750287052601,-1011.8,0.00030236,2]
[366489391,1750287052613,-1005.8,0.00030236,2]
[366489392,1750287052624,-983.06,0.00030237,2]
[366489393,1750287052636,-287.0,0.00030301,2]
[366489394,1750287052647,-281.0,0.00030301,2]
[366489395,1750287052659,-202.0,0.00030308,18]
[366489396,1750287052671,-150.0,0.00030351,2]
[366489397,1750287052682,-150.0,0.00030353,2]
[366489398,1750287052693,-457.0,0.00030447,14]
[366489399,1750287052705,-2110.0,0.000305,2]
[366489400,1750287052716,-7880.11,0.000305,2]
[366489401,1750287052728,-1783.62314122,0.00030511,4]
[366489402,1750287052740,-1099.66871677,0.00030511,4]
[366489403,1750287052751,-2971.91794911,0.00030511,4]
[366489404,1750287052763,-152.0,0.00030555,11]
[366489405,1750287052774,-1333.0,0.00030575,120]
[366489406,1750287052785,-548.0,0.00030613,30]
[366489407,1750287052796,-2000.0,0.000307,2]
[366489408,1750287052808,-187.78006525,0.00030751,2]
[366489409,1750287052819,-257.91778498,0.00030751,2]
[366489410,1750287052831,-1275.06234,0.000308,120]
[366489411,1750287052843,-1783.62314122,0.00030878,4]
[366489412,1750287052854,-1099.66871677,0.00030878,4]
[366489413,1750287052865,-2971.91794911,0.00030878,4]
[366489414,1750287052877,-1069.25875259,0.000309,2]
[366489415,1750287052889,-150.0,0.00030941,2]
[366489416,1750287052901,-330.66202689,0.00031,5]
[366489417,1750287052913,-500.0,0.00031,2]
[366489418,1750287052924,-4000.0,0.00031,2]
[366489419,1750287052935,-269038.52585011,0.00031,2]
[366489420,1750287052947,-1074.31,0.00031,32]
[366489421,1750287052957,-2110.0,0.00031,2]
[366489422,1750287052969,-2792.75,0.00031,7]
[366489423,1750287052979,-202.0,0.00031,30]
[366489424,1750287052990,-1010.11,0.00031,2]
[366489425,1750287053001,-315567.12,0.00031,7]
[366489426,1750287053012,-201.86242174,0.0003114,2]
[366489427,1750287053023,-276.26198042,0.0003114,15]
[366489428,1750287053037,-1783.62314122,0.00031246,4]
[366489429,1750287053048,-1099.66871677,0.00031246,4]
[366489430,1750287053059,-2971.91794911,0.00031246,4]
[366489431,1750287053071,-315567.12,0.000313,7]
[366489432,1750287053083,-152.0,0.00031353,12]
[366489433,1750287053094,-20128.00770163,0.0003139,6]
[366489434,1750287053106,-172.63733097,0.000314,30]
[366489435,1750287053117,-8727.73425319,0.000314,30]
[366489436,1750287053128,-1069.25875253,0.00031413,2]
[366489437,1750287053139,-1000.0,0.00031424,7]
[366489438,1750287053151,-19036.58206081,0.0003143,4]
[366489439,1750287053667,-150.0,0.00031496,2]
[366489440,1750287053697,-2110.0,0.000315,2]
[366489441,1750287053714,-150.0,0.00031507,60]
[366489442,1750287053734,-150.0,0.00031532,2]
[366489443,1750287053767,-201.0,0.0003159,30]
[366489444,1750287053777,-1783.62314122,0.00031614,30]
[366489445,1750287053787,-1099.66871677,0.00031614,30]
[366489446,1750287053797,-2971.91794911,0.00031614,30]
[366489447,1750287053808,-1076.08,0.00031709,2]
[366489448,1750287053817,-554.03225337,0.0003178,6]
[366489449,1750287053827,-4743.29672319,0.0003178,2]
[366489450,1750287053837,-15357.08808105,0.0003178,2]
[366489451,1750287053847,-10717.52803054,0.0003178,2]
[366489452,1750287053858,-1069.25875253,0.00031926,2]
[366489453,1750287053867,-202.0,0.00031958,20]
[366489454,1750287053877,-1900.0,0.00031972,7]
[366489455,1750287053887,-1783.62314122,0.00031981,30]
[366489456,1750287053897,-1099.66871677,0.00031981,30]
[366489457,1750287053907,-2971.91794911,0.00031981,30]
[366489458,1750287053918,-18767.00415397,0.00032,7]
[366489459,1750287053927,-1539.62465665,0.00032,2]
[366489460,1750287053937,-35000.0,0.00032,2]
[366489461,1750287053947,-50000.0,0.00032,4]
[366489462,1750287053957,-50000.0,0.00032,4]
[366489463,1750287053966,-2000.0,0.00032,2]
[366489464,1750287053976,-2000.0,0.00032,2]
[366489465,1750287053986,-2000.0,0.00032,2]
[366489466,1750287053996,-2000.0,0.00032,2]
[366489467,1750287054006,-42551.1195698,0.00032,30]
[366489468,1750287054016,-2110.0,0.00032,2]
[366489469,1750287054027,-2048.40391309,0.00032,2]
[366489470,1750287054042,-400.0,0.00032,120]
[366489471,1750287054052,-202.0,0.00032,30]
[366489472,1750287054062,-315567.12,0.00032,7]
[366489473,1750287054073,-7880.11,0.00032,2]
[366489474,1750287054083,-2000.0,0.00032,2]
[366489475,1750287054093,-2000.0,0.00032,2]
[366489476,1750287054104,-2000.0,0.00032,2]
[366489477,1750287054115,-2000.0,0.00032,2]
[366489478,1750287054125,-2000.0,0.00032,2]
[366489479,1750287054134,-1000.0,0.00032,2]
[366489480,1750287054144,-1107.91426012,0.00032055,30]
[366489481,1750287054154,-10000.0,0.00032088,5]
[366489482,1750287054165,-194.72792766,0.0003212,2]
[366489483,1750287054175,-267.46074303,0.0003212,2]
[366489484,1750287054185,-150.0,0.00032122,2]
[366489485,1750287054194,-152.0,0.00032152,13]
[366489486,1750287054204,-1783.62314122,0.00032349,30]
[366489487,1750287054214,-1099.66871677,0.00032349,30]
[366489488,1750287054225,-2971.91794911,0.00032349,30]
[366489489,1750287054235,-1069.25875253,0.00032439,2]
[366489490,1750287054244,-2110.0,0.000325,2]
[366489491,1750287054254,-400.0,0.000326,2]
[366489492,1750287054262,-164.0,0.00032622,14]
[366489493,1750287054271,-201.0,0.0003266,30]
[366489494,1750287054280,-150.0,0.00032712,2]
[366489495,1750287054288,-1783.62314122,0.00032716,30]
[366489496,1750287054297,-1099.66871677,0.00032716,30]
[366489497,1750287054305,-2971.91794911,0.00032716,30]
[366489498,1750287054314,-1900.0,0.00032794,7]
[366489499,1750287054322,-4679.58965779,0.000328,2]
[366489500,1750287054330,-1000000.0,0.000328,120]
[366489501,1750287054339,-150.0,0.00032866,2]
[366489502,1750287054348,-1129.41,0.00032876,2]
[366489503,1750287054356,-1129.41,0.00032876,7]
[366489504,1750287054365,-1129.41,0.00032876,12]
[366489505,1750287054373,-1129.41,0.00032876,17]
[366489506,1750287054381,-1129.41,0.00032876,22]
[366489507,1750287054390,-1129.41,0.00032876,27]
[366489508,1750287054398,-1129.41,0.00032876,32]
[366489509,1750287054406,-1129.41,0.00032876,37]
[366489510,1750287054414,-1129.41,0.00032876,42]
[366489511,1750287054423,-1129.41,0.00032876,47]
[366489512,1750287054431,-1129.41,0.00032876,52]
[366489513,1750287054438,-1129.41,0.00032876,57]
[366489514,1750287054445,-1129.41,0.00032876,62]
[366489515,1750287054451,-1129.41,0.00032876,67]
[366489516,1750287054458,-1129.41,0.00032876,72]
[366489517,1750287054465,-1129.41,0.00032876,77]
[366489518,1750287054472,-1129.41,0.00032876,82]
[366489519,1750287054480,-1129.41,0.00032876,87]
[366489520,1750287054486,-1129.41,0.00032876,92]
[366489521,1750287054493,-1129.41,0.00032876,97]
[366489522,1750287054500,-1129.41,0.00032876,97]
[366489523,1750287054508,-1129.41,0.00032876,97]
[366489524,1750287054518,-1129.41,0.00032876,97]
[366489525,1750287054527,-1129.58637831,0.00032876,97]
[366489526,1750287054537,-5000.0,0.00032876,2]
[366489527,1750287054547,-333.62,0.00032877,2]
[366489528,1750287054556,-1200.0,0.000329,2]
[366489529,1750287054566,-526.0,0.000329,2]
[366489530,1750287054576,-600.0,0.000329,12]
[366489531,1750287054585,-500.0,0.000329,2]
[366489532,1750287054595,-152.0,0.0003295,14]
[366489533,1750287054605,-1069.25875253,0.00032952,2]
[366489534,1750287054616,-15462.67511538,0.00033,5]
[366489535,1750287054626,-4580.03907077,0.00033,2]
[366489536,1750287054635,-25243.84019253,0.00033,2]
[366489537,1750287054645,-282.12,0.00033,2]
[366489538,1750287054655,-151.69431171,0.00033,30]
[366489539,1750287054664,-203.11527223,0.00033,120]
[366489540,1750287054673,-2379.41096262,0.00033,30]
[366489541,1750287054683,-160.0,0.00033,30]
[366489542,1750287054693,-2110.0,0.00033,2]
[366489543,1750287054702,-530.196941,0.00033,14]
[366489544,1750287054712,-202.0,0.00033,30]
[366489545,1750287054722,-214.0,0.00033,2]
[366489546,1750287054731,-276.26198042,0.00033013,15]
[366489547,1750287054741,-500.0,0.00033068,60]
[366489548,1750287054751,-1000.0,0.00033068,60]
[366489549,1750287054761,-1783.62314122,0.00033084,30]
[366489550,1750287054771,-1099.66871677,0.00033084,30]
[366489551,1750287054781,-2971.91794911,0.00033084,30]
[366489552,1750287054790,-217.53279959,0.000331,2]
[366489553,1750287054800,-2511.2,0.0003315,5]
[366489554,1750287054811,-197.99,0.00033165,2]
[366489555,1750287054820,-500.0,0.00033178,120]
[366489556,1750287054831,-500.0,0.00033178,120]
[366489557,1750287054840,-538.19232461,0.00033178,120]
[366489558,1750287054850,-500.74,0.000332,7]
[366489559,1750287054860,-173.18,0.00033253,120]
[366489560,1750287054869,-150.0,0.00033302,2]
[366489561,1750287054879,-2000.0,0.000334,2]
[366489562,1750287054889,-8727.73425319,0.000334,30]
[366489563,1750287054899,-1783.62314122,0.00033452,30]
[366489564,1750287054911,-1099.66871677,0.00033452,30]
[366489565,1750287054921,-2971.91794911,0.00033452,30]
[366489566,1750287054931,-1069.25875253,0.00033464,2]
[366489567,1750287054942,-201.93286099,0.00033489,2]
[366489568,1750287054952,-277.35679052,0.00033489,2]
[366489569,1750287054962,-1174.59400185,0.000335,2]
[366489570,1750287054972,-527.18,0.000335,2]
[366489571,1750287054982,-419.68381093,0.00033534,14]
[366489572,1750287054992,-202.0,0.00033607,22]
[366489573,1750287055001,-1900.0,0.00033616,60]
[366489574,1750287055011,-500.0,0.00033616,60]
[366489575,1750287055020,-768.0,0.00033674,30]
[366489576,1750287055032,-201.0,0.0003373,30]
[366489577,1750287055042,-152.0,0.00033748,15]
[366489578,1750287055052,-331.03935103,0.0003375,120]
[366489579,1750287055062,-1783.62314122,0.00033819,30]
[366489580,1750287055073,-1099.66871677,0.00033819,30]
[366489581,1750287055083,-2971.91794911,0.00033819,30]
[366489582,1750287055093,-275.83996,0.00033888,7]
[366489583,1750287055103,-490.5218336,0.000339,120]
[366489584,1750287055114,-1000.0,0.000339,120]
[366489585,1750287055124,-300.0,0.00033904,120]
[366489586,1750287055134,-201.86242174,0.0003395,2]
[366489587,1750287055143,-1076.08,0.00033973,2]
[366489588,1750287055153,-1069.25875253,0.00033977,2]
[366489589,1750287055163,-976.96,0.00034,2]
[366489590,1750287055172,-258.31,0.00034,10]
[366489591,1750287055182,-4500.0,0.00034,2]
[366489592,1750287055191,-1662.64,0.00034,10]
[366489593,1750287055202,-1100.0,0.00034,30]
[366489594,1750287055211,-400.0,0.00034,120]
[366489595,1750287055221,-202.0,0.00034,30]
[366489596,1750287055230,-2095.96,0.00034043,2]
[366489597,1750287055251,-5000.0,0.00034071,2]
[366489598,1750287055262,-275.83996,0.00034088,7]
[366489599,1750287055272,-5000.0,0.00034094,2]
[366489600,1750287055282,-78346.82191348,0.000341,2]
[366489601,1750287055292,-4592.5,0.00034114,2]
[366489602,1750287055302,-2199.06,0.00034114,2]
[366489603,1750287055313,-5000.0,0.00034158,2]
[366489604,1750287055325,-1900.0,0.00034164,60]
[366489605,1750287055336,-5000.0,0.00034164,2]
[366489606,1750287055346,-500.0,0.00034164,60]
[366489607,1750287055356,-1000.0,0.00034164,60]
[366489608,1750287055366,-1783.62314122,0.00034187,30]
[366489609,1750287055377,-1099.66871677,0.00034187,30]
[366489610,1750287055387,-2971.91794911,0.00034187,30]
[366489611,1750287055396,-200.0,0.000342,120]
[366489612,1750287055407,-1352.89,0.00034214,2]
[366489613,1750287055417,-25000.0,0.00034232,2]
[366489614,1750287055427,-150.0,0.00034236,2]
[366489615,1750287055437,-5000.0,0.00034238,2]
[366489616,1750287055447,-975.77,0.00034253,2]
[366489617,1750287055457,-2988.75,0.00034272,2]
[366489618,1750287055467,-275.83996,0.00034288,7]
[366489619,1750287055478,-2937.93,0.00034289,2]
[366489620,1750287055488,-5000.0,0.00034291,2]
[366489621,1750287055498,-5000.0,0.00034349,2]
[366489622,1750287055508,-300.0,0.000344,2]
[366489623,1750287055519,-300.0,0.000344,2]
[366489624,1750287055529,-300.0,0.000344,2]
[366489625,1750287055540,-300.0,0.000344,2]
[366489626,1750287055550,-314.47095255,0.000344,2]
[366489627,1750287055559,-5000.0,0.00034422,2]
[366489628,1750287055569,-47076.91512525,0.00034442,5]
[366489629,1750287055578,-5000.0,0.00034466,2]